[Event "Titled Tuesday Blitz June 21 Late 2022"]
[White "Le, Tuan Minh"]
[Black "Yoo, Christopher Woojin"]
[WhiteFideId "12401153"]
[BlackFideId "30909694"]
[WhiteElo "2530"]
[BlackElo "2105"]
[Result "1-0"]
[Round "06"]
[TimeControl "180+1"]
[Date "2022.06.21"]
[WhiteClock "0:00:18"]
[BlackClock "0:00:03"]

1. d4 {[%clk 0:03:00]}  Nf6 {[%clk 0:02:59]} 2. Nf3 {[%clk 0:03:00]}  d5 {[%clk 0:02:59]} 3. Bf4 {[%clk 0:02:59]}  c5 {[%clk 0:02:59]} 4. c3 {[%clk 0:02:59]}  Qb6 {[%clk 0:02:51]} 5. Qc2 {[%clk 0:02:57]}  Nc6 {[%clk 0:02:46]} 6. e3 {[%clk 0:02:57]}  Nh5 {[%clk 0:02:46]} 7. Be5 {[%clk 0:02:57]}  f6 {[%clk 0:01:53]} 8. Bg3 {[%clk 0:02:56]}  g6 {[%clk 0:01:50]} 9. Nbd2 {[%clk 0:02:54]}  Bg7 {[%clk 0:01:48]} 10. Be2 {[%clk 0:02:54]}  O-O {[%clk 0:01:45]} 11. O-O {[%clk 0:02:53]}  Nxg3 {[%clk 0:01:44]} 12. hxg3 {[%clk 0:02:52]}  Bd7 {[%clk 0:01:38]} 13. Rac1 {[%clk 0:02:18]}  Rac8 {[%clk 0:01:34]} 14. dxc5 {[%clk 0:02:06]}  Qxc5 {[%clk 0:01:34]} 15. c4 {[%clk 0:02:07]}  dxc4 {[%clk 0:01:28]} 16. Bxc4+ {[%clk 0:02:00]}  Kh8 {[%clk 0:01:28]} 17. Qe4 {[%clk 0:01:38]}  Bf5 {[%clk 0:01:21]} 18. Qh4 {[%clk 0:01:37]}  g5 {[%clk 0:01:19]} 19. Qh5 {[%clk 0:01:35]}  Bg6 {[%clk 0:01:17]} 20. Qh3 {[%clk 0:01:35]}  Qd6 {[%clk 0:01:03]} 21. Be6 {[%clk 0:01:32]}  Rcd8 {[%clk 0:00:58]} 22. Nc4 {[%clk 0:01:32]}  Qc7 {[%clk 0:00:55]} 23. Bf5 {[%clk 0:01:33]}  Bxf5 {[%clk 0:00:50]} 24. Qxf5 {[%clk 0:01:33]}  Qd7 {[%clk 0:00:51]} 25. Qb5 {[%clk 0:01:28]}  e6 {[%clk 0:00:38]} 26. g4 {[%clk 0:01:21]}  Qe7 {[%clk 0:00:36]} 27. Rfd1 {[%clk 0:01:18]}  f5 {[%clk 0:00:32]} 28. Rxd8 {[%clk 0:01:17]}  Nxd8 {[%clk 0:00:31]} 29. Nce5 {[%clk 0:01:14]}  fxg4 {[%clk 0:00:13]} 30. Nxg4 {[%clk 0:01:14]}  Nf7 {[%clk 0:00:13]} 31. b3 {[%clk 0:01:02]}  Rd8 {[%clk 0:00:13]} 32. Ngh2 {[%clk 0:00:48]}  h5 {[%clk 0:00:09]} 33. Nf1 {[%clk 0:00:48]}  Rd5 {[%clk 0:00:08]} 34. Qa4 {[%clk 0:00:48]}  a6 {[%clk 0:00:07]} 35. Rc8+ {[%clk 0:00:44]}  Rd8 {[%clk 0:00:07]} 36. Qc4 {[%clk 0:00:40]}  Rxc8 {[%clk 0:00:06]} 37. Qxc8+ {[%clk 0:00:41]}  Kh7 {[%clk 0:00:07]} 38. Ng3 {[%clk 0:00:41]}  h4 {[%clk 0:00:05]} 39. Ne4 {[%clk 0:00:41]}  g4 {[%clk 0:00:04]} 40. Qc2 {[%clk 0:00:38]}  Kh6 {[%clk 0:00:03]} 41. Nd4 {[%clk 0:00:37]}  Bxd4 {[%clk 0:00:03]} 42. exd4 {[%clk 0:00:38]}  Nd6 {[%clk 0:00:02]} 43. Qc5 {[%clk 0:00:35]}  Nf5 {[%clk 0:00:02]} 44. Qe5 {[%clk 0:00:36]}  Kg6 {[%clk 0:00:02]} 45. Qf4 {[%clk 0:00:34]}  Qg7 {[%clk 0:00:01]} 46. Qxg4+ {[%clk 0:00:34]}  Kf7 {[%clk 0:00:02]} 47. Ng5+ {[%clk 0:00:27]}  Ke7 {[%clk 0:00:02]} 48. Qh5 {[%clk 0:00:19]}  Qf6 {[%clk 0:00:02]} 49. Qh7+ {[%clk 0:00:19]}  Ke8 {[%clk 0:00:03]} 50. Qg8+ {[%clk 0:00:18]}  Ke7 {[%clk 0:00:03]} 51. Kh1 {[%clk 0:00:16]}  Nxd4 {[%clk 0:00:02]} 52. Ne4 {[%clk 0:00:16]}  Qf5 {[%clk 0:00:01]} 53. Qg7+ {[%clk 0:00:16]}  Kd8 {[%clk 0:00:02]} 54. Qxd4+ {[%clk 0:00:16]}  Qd5 {[%clk 0:00:02]} 55. Qxd5+ {[%clk 0:00:17]}  exd5 {[%clk 0:00:02]} 56. Nc5 {[%clk 0:00:17]}  d4 {[%clk 0:00:03]} 57. Nd3 {[%clk 0:00:18]} 1-0


[Site "https://www.chess.com"]

[Event "Titled Tuesday Blitz June 21 Late 2022"]
[White "Marin Masis, Jose Esteban"]
[Black "Senthilkumar, Pranav"]
[WhiteFideId "6508146"]
[BlackFideId "2083477"]
[WhiteElo "1710"]
[BlackElo "2425"]
[Result "1-0"]
[Round "06"]
[TimeControl "180+1"]
[Date "2022.06.22"]
[WhiteClock "0:00:30"]
[BlackClock "0:01:26"]

1. e4 {[%clk 0:03:00]}  c5 {[%clk 0:02:57]} 2. Nf3 {[%clk 0:02:58]}  Nc6 {[%clk 0:02:42]} 3. d4 {[%clk 0:02:58]}  cxd4 {[%clk 0:02:43]} 4. Nxd4 {[%clk 0:02:58]}  e6 {[%clk 0:02:44]} 5. Nc3 {[%clk 0:02:45]}  Qc7 {[%clk 0:02:41]} 6. Be3 {[%clk 0:02:43]}  a6 {[%clk 0:02:35]} 7. Qd2 {[%clk 0:02:43]}  Nf6 {[%clk 0:02:34]} 8. O-O-O {[%clk 0:02:42]}  Bb4 {[%clk 0:02:34]} 9. f3 {[%clk 0:02:40]}  d5 {[%clk 0:02:34]} 10. a3 {[%clk 0:02:24]}  Bxc3 {[%clk 0:02:29]} 11. Qxc3 {[%clk 0:02:20]}  dxe4 {[%clk 0:02:30]} 12. fxe4 {[%clk 0:02:16]}  Nxe4 {[%clk 0:02:29]} 13. Qd3 {[%clk 0:02:10]}  Nf6 {[%clk 0:02:29]} 14. Nxc6 {[%clk 0:02:01]}  bxc6 {[%clk 0:02:30]} 15. Bc5 {[%clk 0:02:01]}  Bb7 {[%clk 0:02:28]} 16. Be2 {[%clk 0:01:26]}  Rd8 {[%clk 0:02:26]} 17. Bd6 {[%clk 0:01:26]}  Qd7 {[%clk 0:02:19]} 18. Qg3 {[%clk 0:01:23]}  Rg8 {[%clk 0:02:10]} 19. Bc7 {[%clk 0:01:14]}  Ne4 {[%clk 0:02:02]} 20. Rxd7 {[%clk 0:01:13]}  Rxd7 {[%clk 0:02:02]} 21. Qf4 {[%clk 0:01:07]}  c5 {[%clk 0:02:02]} 22. Bf3 {[%clk 0:00:53]}  g5 {[%clk 0:01:59]} 23. Qe3 {[%clk 0:00:49]}  f5 {[%clk 0:01:53]} 24. Bh5+ {[%clk 0:00:43]}  Ke7 {[%clk 0:01:48]} 25. Be5 {[%clk 0:00:41]}  g4 {[%clk 0:01:44]} 26. Qh6 {[%clk 0:00:35]}  Kd8 {[%clk 0:01:30]} 27. Rd1 {[%clk 0:00:30]}  Rxd1+ {[%clk 0:01:30]} 28. Kxd1 {[%clk 0:00:30]}  Re8 {[%clk 0:01:26]} 29. Bxe8 {[%clk 0:00:30]}  Kxe8 {[%clk 0:01:26]} 30. Qxe6+ {[%clk 0:00:30]} 1-0


[Site "https://www.chess.com"]

[Event "Titled Tuesday Blitz June 21 Late 2022"]
[White "Martinez Reyes, Pedro Ramon"]
[Black "Clarke, Brandon G I"]
[WhiteFideId "3901807"]
[BlackFideId "400319"]
[WhiteElo "2410"]
[BlackElo "2414"]
[Result "0-1"]
[Round "06"]
[TimeControl "180+1"]
[Date "2022.06.21"]
[WhiteClock "0:00:39"]
[BlackClock "0:00:05"]

1. e4 {[%clk 0:03:00]}  e6 {[%clk 0:02:52]} 2. d4 {[%clk 0:02:57]}  d5 {[%clk 0:02:52]} 3. Nc3 {[%clk 0:02:53]}  Nf6 {[%clk 0:02:51]} 4. Bg5 {[%clk 0:02:51]}  dxe4 {[%clk 0:02:51]} 5. Nxe4 {[%clk 0:02:51]}  Be7 {[%clk 0:02:51]} 6. Bxf6 {[%clk 0:02:50]}  gxf6 {[%clk 0:02:52]} 7. Nf3 {[%clk 0:02:49]}  a6 {[%clk 0:02:51]} 8. g3 {[%clk 0:02:47]}  b5 {[%clk 0:02:52]} 9. Bg2 {[%clk 0:02:48]}  Bb7 {[%clk 0:02:52]} 10. Ned2 {[%clk 0:02:49]}  Nd7 {[%clk 0:02:50]} 11. O-O {[%clk 0:02:43]}  f5 {[%clk 0:02:51]} 12. a4 {[%clk 0:02:40]}  Nb6 {[%clk 0:02:30]} 13. axb5 {[%clk 0:02:35]}  axb5 {[%clk 0:02:30]} 14. Qe2 {[%clk 0:02:35]}  Bc6 {[%clk 0:02:12]} 15. Ne5 {[%clk 0:02:02]}  Bxg2 {[%clk 0:02:12]} 16. Kxg2 {[%clk 0:01:53]}  Qd5+ {[%clk 0:01:56]} 17. Ndf3 {[%clk 0:01:52]}  O-O {[%clk 0:01:56]} 18. Rfd1 {[%clk 0:01:31]}  Bf6 {[%clk 0:01:12]} 19. Kg1 {[%clk 0:01:29]}  Qe4 {[%clk 0:00:26]} 20. Qxe4 {[%clk 0:01:19]}  fxe4 {[%clk 0:00:26]} 21. Nd2 {[%clk 0:01:20]}  Bxe5 {[%clk 0:00:08]} 22. dxe5 {[%clk 0:01:21]}  Nd7 {[%clk 0:00:08]} 23. Nxe4 {[%clk 0:01:18]}  Nxe5 {[%clk 0:00:08]} 24. Kg2 {[%clk 0:01:18]}  Kg7 {[%clk 0:00:06]} 25. Nc5 {[%clk 0:01:17]}  Nc4 {[%clk 0:00:06]} 26. b3 {[%clk 0:01:16]}  Nd6 {[%clk 0:00:06]} 27. g4 {[%clk 0:01:12]}  h6 {[%clk 0:00:06]} 28. h3 {[%clk 0:01:12]}  Rfd8 {[%clk 0:00:04]} 29. f4 {[%clk 0:01:12]}  Kf6 {[%clk 0:00:04]} 30. Kf3 {[%clk 0:01:12]}  Ke7 {[%clk 0:00:05]} 31. h4 {[%clk 0:01:09]}  b4 {[%clk 0:00:05]} 32. h5 {[%clk 0:01:09]}  Rxa1 {[%clk 0:00:03]} 33. Rxa1 {[%clk 0:01:08]}  Nb5 {[%clk 0:00:04]} 34. Ke3 {[%clk 0:01:00]}  Nd4 {[%clk 0:00:04]} 35. Ra7 {[%clk 0:00:55]}  Nxc2+ {[%clk 0:00:04]} 36. Kf3 {[%clk 0:00:53]}  Nd4+ {[%clk 0:00:03]} 37. Ke4 {[%clk 0:00:53]}  Nb5 {[%clk 0:00:03]} 38. Ra4 {[%clk 0:00:47]}  Nc3+ {[%clk 0:00:02]} 39. Ke3 {[%clk 0:00:46]}  Nxa4 {[%clk 0:00:03]} 40. bxa4 {[%clk 0:00:46]}  Rd5 {[%clk 0:00:04]} 41. Nb3 {[%clk 0:00:46]}  Kd6 {[%clk 0:00:04]} 42. a5 {[%clk 0:00:46]}  Kc6 {[%clk 0:00:04]} 43. Nd4+ {[%clk 0:00:43]}  Kb7 {[%clk 0:00:04]} 44. f5 {[%clk 0:00:41]}  e5 {[%clk 0:00:04]} 45. Nb3 {[%clk 0:00:41]}  f6 {[%clk 0:00:03]} 46. Ke4 {[%clk 0:00:40]}  c6 {[%clk 0:00:04]} 47. Ke3 {[%clk 0:00:39]}  Ka6 {[%clk 0:00:04]} 48. Ke2 {[%clk 0:00:39]}  Kb5 {[%clk 0:00:04]} 49. Ke3 {[%clk 0:00:39]}  Kc4 {[%clk 0:00:03]} 50. Nd2+ {[%clk 0:00:38]}  Kb5 {[%clk 0:00:03]} 51. Nb3 {[%clk 0:00:38]}  Rd8 {[%clk 0:00:03]} 52. Nd2 {[%clk 0:00:36]}  c5 {[%clk 0:00:03]} 53. Ne4 {[%clk 0:00:36]}  b3 {[%clk 0:00:04]} 54. a6 {[%clk 0:00:33]}  b2 {[%clk 0:00:04]} 55. a7 {[%clk 0:00:33]}  Kc4 {[%clk 0:00:03]} 56. Nd2+ {[%clk 0:00:29]}  Kc3 {[%clk 0:00:04]} 57. Nb1+ {[%clk 0:00:29]}  Kc2 {[%clk 0:00:04]} 58. Na3+ {[%clk 0:00:30]}  Kb3 {[%clk 0:00:05]} 59. Nb1 {[%clk 0:00:30]}  Ra8 {[%clk 0:00:05]} 60. Nd2+ {[%clk 0:00:30]}  Kc2 {[%clk 0:00:05]} 61. Nc4 {[%clk 0:00:30]}  Rxa7 {[%clk 0:00:05]} 62. Ke4 {[%clk 0:00:30]}  b1=Q {[%clk 0:00:05]} 63. Ne3+ {[%clk 0:00:31]}  Kc3+ {[%clk 0:00:05]} 64. Kd5 {[%clk 0:00:31]}  Ra4 {[%clk 0:00:05]} 65. Ke6 {[%clk 0:00:31]}  Qe4 {[%clk 0:00:05]} 66. Kxf6 {[%clk 0:00:32]}  Qxe3 {[%clk 0:00:05]} 67. Kf7 {[%clk 0:00:33]}  Ra6 {[%clk 0:00:06]} 68. f6 {[%clk 0:00:33]}  Qg5 {[%clk 0:00:06]} 69. Kf8 {[%clk 0:00:34]}  Qxf6+ {[%clk 0:00:06]} 70. Ke8 {[%clk 0:00:34]}  Qg7 {[%clk 0:00:04]} 71. Kd8 {[%clk 0:00:34]}  e4 {[%clk 0:00:05]} 72. Kc8 {[%clk 0:00:34]}  e3 {[%clk 0:00:05]} 73. Kb8 {[%clk 0:00:35]}  e2 {[%clk 0:00:06]} 74. Kc8 {[%clk 0:00:36]}  e1=Q {[%clk 0:00:06]} 75. Kd8 {[%clk 0:00:37]}  Qee7+ {[%clk 0:00:04]} 76. Kc8 {[%clk 0:00:36]}  Kd4 {[%clk 0:00:04]} 77. g5 {[%clk 0:00:37]}  c4 {[%clk 0:00:05]} 78. g6 {[%clk 0:00:37]}  c3 {[%clk 0:00:04]} 79. Kb8 {[%clk 0:00:38]}  c2 {[%clk 0:00:04]} 80. Kc8 {[%clk 0:00:38]}  c1=Q+ {[%clk 0:00:05]} 81. Kb8 {[%clk 0:00:39]}  Qcc7# {[%clk 0:00:05]} 0-1


[Site "https://www.chess.com"]

[Event "Titled Tuesday Blitz June 21 Late 2022"]
[White "Mikhalsky, Vladimir"]
[Black "Do Valle Cardoso, Lucas"]
[WhiteFideId "14144352"]
[BlackFideId "2163144"]
[WhiteElo "2301"]
[BlackElo "2277"]
[Result "1-0"]
[Round "06"]
[TimeControl "180+1"]
[Date "2022.06.22"]
[WhiteClock "0:01:06"]
[BlackClock "0:00:09"]

1. c4 {[%clk 0:02:59]}  Nf6 {[%clk 0:02:57]} 2. Nc3 {[%clk 0:02:59]}  e6 {[%clk 0:02:57]} 3. e4 {[%clk 0:02:58]}  d5 {[%clk 0:02:45]} 4. e5 {[%clk 0:02:58]}  Ne4 {[%clk 0:02:43]} 5. Nxe4 {[%clk 0:02:58]}  dxe4 {[%clk 0:02:44]} 6. Qg4 {[%clk 0:02:58]}  Qd4 {[%clk 0:02:29]} 7. Nf3 {[%clk 0:02:56]}  h5 {[%clk 0:02:13]} 8. Qf4 {[%clk 0:02:38]}  g5 {[%clk 0:02:00]} 9. Nxg5 {[%clk 0:02:31]}  Qd7 {[%clk 0:01:58]} 10. Nxe4 {[%clk 0:02:30]}  Be7 {[%clk 0:01:56]} 11. d4 {[%clk 0:02:18]}  b6 {[%clk 0:01:54]} 12. Be3 {[%clk 0:02:15]}  Bb7 {[%clk 0:01:54]} 13. Nf6+ {[%clk 0:02:12]}  Bxf6 {[%clk 0:01:53]} 14. Qxf6 {[%clk 0:02:12]}  Rg8 {[%clk 0:01:52]} 15. O-O-O {[%clk 0:02:08]}  Qa4 {[%clk 0:01:39]} 16. Bg5 {[%clk 0:01:49]}  Nc6 {[%clk 0:00:51]} 17. d5 {[%clk 0:01:48]}  Rg6 {[%clk 0:00:37]} 18. dxc6 {[%clk 0:01:43]}  Rxf6 {[%clk 0:00:27]} 19. cxb7 {[%clk 0:01:42]}  Rb8 {[%clk 0:00:23]} 20. Bxf6 {[%clk 0:01:41]}  Qxa2 {[%clk 0:00:21]} 21. Be2 {[%clk 0:01:18]}  Qa1+ {[%clk 0:00:20]} 22. Kc2 {[%clk 0:01:17]}  Qa4+ {[%clk 0:00:18]} 23. Kb1 {[%clk 0:01:15]}  a5 {[%clk 0:00:09]} 24. Rd8+ {[%clk 0:01:06]} 1-0


[Site "https://www.chess.com"]

[Event "Titled Tuesday Blitz June 21 Late 2022"]
[White "Moussard, Jules"]
[Black "Grischuk, Alexander"]
[WhiteFideId "642908"]
[BlackFideId "4126025"]
[WhiteElo "2589"]
[BlackElo "2762"]
[Result "0-1"]
[Round "06"]
[TimeControl "180+1"]
[Date "2022.06.21"]
[WhiteClock "0:00:04"]
[BlackClock "0:00:04"]

1. e4 {[%clk 0:03:00]}  e6 {[%clk 0:03:00]} 2. d4 {[%clk 0:02:59]}  d5 {[%clk 0:03:01]} 3. Nc3 {[%clk 0:02:59]}  Nf6 {[%clk 0:03:00]} 4. e5 {[%clk 0:02:59]}  Nfd7 {[%clk 0:03:00]} 5. Nce2 {[%clk 0:02:59]}  c5 {[%clk 0:03:00]} 6. c3 {[%clk 0:02:59]}  Nc6 {[%clk 0:03:00]} 7. Nf3 {[%clk 0:03:00]}  cxd4 {[%clk 0:02:59]} 8. cxd4 {[%clk 0:03:00]}  f6 {[%clk 0:03:00]} 9. Nf4 {[%clk 0:02:57]}  fxe5 {[%clk 0:02:58]} 10. Nxe6 {[%clk 0:02:52]}  Qb6 {[%clk 0:02:57]} 11. Bb5 {[%clk 0:02:41]}  e4 {[%clk 0:02:51]} 12. Nfg5 {[%clk 0:02:37]}  Nf6 {[%clk 0:02:44]} 13. Bf4 {[%clk 0:02:15]}  Bb4+ {[%clk 0:02:40]} 14. Bd2 {[%clk 0:02:12]}  Bxd2+ {[%clk 0:02:21]} 15. Qxd2 {[%clk 0:02:11]}  Bxe6 {[%clk 0:02:21]} 16. Nxe6 {[%clk 0:02:11]}  Kf7 {[%clk 0:02:22]} 17. Ng5+ {[%clk 0:01:54]}  Kg6 {[%clk 0:02:21]} 18. Bxc6 {[%clk 0:01:52]}  Qxc6 {[%clk 0:02:15]} 19. O-O {[%clk 0:01:37]}  h6 {[%clk 0:02:10]} 20. Rac1 {[%clk 0:01:37]}  Qd6 {[%clk 0:02:09]} 21. Nh3 {[%clk 0:01:35]}  Rac8 {[%clk 0:01:54]} 22. Nf4+ {[%clk 0:01:14]}  Kh7 {[%clk 0:01:50]} 23. h3 {[%clk 0:01:14]}  Qd7 {[%clk 0:01:26]} 24. Qa5 {[%clk 0:01:04]}  b6 {[%clk 0:01:23]} 25. Qa3 {[%clk 0:01:01]}  a5 {[%clk 0:01:16]} 26. Qg3 {[%clk 0:00:49]}  Qf5 {[%clk 0:01:10]} 27. Ne2 {[%clk 0:00:49]}  Rhe8 {[%clk 0:01:02]} 28. Rc3 {[%clk 0:00:31]}  Rxc3 {[%clk 0:01:00]} 29. bxc3 {[%clk 0:00:31]}  Rc8 {[%clk 0:00:54]} 30. Qe3 {[%clk 0:00:29]}  Rc4 {[%clk 0:00:52]} 31. Rb1 {[%clk 0:00:28]}  Qe6 {[%clk 0:00:52]} 32. Nf4 {[%clk 0:00:23]}  Qc6 {[%clk 0:00:51]} 33. Ne2 {[%clk 0:00:17]}  b5 {[%clk 0:00:47]} 34. Qg3 {[%clk 0:00:16]}  b4 {[%clk 0:00:45]} 35. cxb4 {[%clk 0:00:16]}  axb4 {[%clk 0:00:46]} 36. Kh2 {[%clk 0:00:16]}  Rc2 {[%clk 0:00:37]} 37. Nf4 {[%clk 0:00:15]}  g5 {[%clk 0:00:37]} 38. Rxb4 {[%clk 0:00:10]}  gxf4 {[%clk 0:00:37]} 39. Qxf4 {[%clk 0:00:10]}  Qc7 {[%clk 0:00:36]} 40. Qxc7+ {[%clk 0:00:09]}  Rxc7 {[%clk 0:00:37]} 41. Kg3 {[%clk 0:00:07]}  Kg6 {[%clk 0:00:35]} 42. Kf4 {[%clk 0:00:08]}  Rc2 {[%clk 0:00:34]} 43. f3 {[%clk 0:00:06]}  exf3 {[%clk 0:00:23]} 44. gxf3 {[%clk 0:00:07]}  Rxa2 {[%clk 0:00:23]} 45. Rb6 {[%clk 0:00:07]}  Rd2 {[%clk 0:00:20]} 46. Ke5 {[%clk 0:00:07]}  Re2+ {[%clk 0:00:21]} 47. Kf4 {[%clk 0:00:08]}  Re7 {[%clk 0:00:14]} 48. h4 {[%clk 0:00:08]}  Kg7 {[%clk 0:00:13]} 49. Kf5 {[%clk 0:00:06]}  Nh5 {[%clk 0:00:12]} 50. Rg6+ {[%clk 0:00:05]}  Kh7 {[%clk 0:00:13]} 51. Rd6 {[%clk 0:00:06]}  Rf7+ {[%clk 0:00:11]} 52. Kg4 {[%clk 0:00:06]}  Nf4 {[%clk 0:00:11]} 53. Rd8 {[%clk 0:00:02]}  Ne2 {[%clk 0:00:09]} 54. Rxd5 {[%clk 0:00:02]}  Rf4+ {[%clk 0:00:09]} 55. Kh3 {[%clk 0:00:02]}  Rxf3+ {[%clk 0:00:09]} 56. Kg2 {[%clk 0:00:01]}  Rf7 {[%clk 0:00:05]} 57. Re5 {[%clk 0:00:01]}  Nxd4 {[%clk 0:00:05]} 58. Kg3 {[%clk 0:00:02]}  Kg6 {[%clk 0:00:04]} 59. Kg4 {[%clk 0:00:02]}  Rf6 {[%clk 0:00:03]} 60. Re7 {[%clk 0:00:01]}  h5+ {[%clk 0:00:02]} 61. Kh3 {[%clk 0:00:02]}  Rf3+ {[%clk 0:00:02]} 62. Kg2 {[%clk 0:00:02]}  Rf4 {[%clk 0:00:02]} 63. Kg3 {[%clk 0:00:02]}  Rg4+ {[%clk 0:00:03]} 64. Kh3 {[%clk 0:00:02]}  Rxh4+ {[%clk 0:00:03]} 65. Kg3 {[%clk 0:00:03]}  Rg4+ {[%clk 0:00:03]} 66. Kh3 {[%clk 0:00:03]}  Nf5 {[%clk 0:00:02]} 67. Re8 {[%clk 0:00:04]}  Kg5 {[%clk 0:00:02]} 68. Rg8+ {[%clk 0:00:05]}  Kf4 {[%clk 0:00:03]} 69. Ra8 {[%clk 0:00:06]}  Rg3+ {[%clk 0:00:03]} 70. Kh2 {[%clk 0:00:06]}  Re3 {[%clk 0:00:04]} 71. Ra4+ {[%clk 0:00:07]}  Re4 {[%clk 0:00:04]} 72. Ra5 {[%clk 0:00:07]}  Kg4 {[%clk 0:00:04]} 73. Ra8 {[%clk 0:00:07]}  Re2+ {[%clk 0:00:04]} 74. Kg1 {[%clk 0:00:07]}  h4 {[%clk 0:00:05]} 75. Ra4+ {[%clk 0:00:07]}  Kg3 {[%clk 0:00:04]} 76. Kf1 {[%clk 0:00:08]}  Re5 {[%clk 0:00:03]} 77. Ra3+ {[%clk 0:00:08]}  Re3 {[%clk 0:00:03]} 78. Ra5 {[%clk 0:00:08]}  Rf3+ {[%clk 0:00:03]} 79. Kg1 {[%clk 0:00:08]}  h3 {[%clk 0:00:03]} 80. Ra2 {[%clk 0:00:08]}  Ne3 {[%clk 0:00:02]} 81. Ra1 {[%clk 0:00:08]}  Rf4 {[%clk 0:00:02]} 82. Re1 {[%clk 0:00:07]}  Rf3 {[%clk 0:00:02]} 83. Rb1 {[%clk 0:00:06]}  Ng4 {[%clk 0:00:02]} 84. Kh1 {[%clk 0:00:03]}  Nf2+ {[%clk 0:00:03]} 85. Kg1 {[%clk 0:00:02]}  h2+ {[%clk 0:00:03]} 86. Kf1 {[%clk 0:00:03]}  h1=Q+ {[%clk 0:00:04]} 87. Ke2 {[%clk 0:00:04]}  Qxb1 {[%clk 0:00:04]} 0-1


[Site "https://www.chess.com"]

[Event "Titled Tuesday Blitz June 21 Late 2022"]
[White "Murzin, Volodar"]
[Black "Sorensen, Hampus"]
[WhiteFideId "44155573"]
[BlackFideId "8703884"]
[WhiteElo "2585"]
[BlackElo "2262"]
[Result "1-0"]
[Round "06"]
[TimeControl "180+1"]
[Date "2022.06.21"]
[WhiteClock "0:00:10"]
[BlackClock "0:00:02"]

1. e4 {[%clk 0:02:56]}  e5 {[%clk 0:02:57]} 2. Nf3 {[%clk 0:02:55]}  Nc6 {[%clk 0:02:54]} 3. Bb5 {[%clk 0:02:55]}  a6 {[%clk 0:02:53]} 4. Ba4 {[%clk 0:02:55]}  Nf6 {[%clk 0:02:53]} 5. O-O {[%clk 0:02:54]}  Be7 {[%clk 0:02:52]} 6. Re1 {[%clk 0:02:49]}  b5 {[%clk 0:02:52]} 7. Bb3 {[%clk 0:02:49]}  d6 {[%clk 0:02:52]} 8. a4 {[%clk 0:02:46]}  Bg4 {[%clk 0:02:47]} 9. c3 {[%clk 0:02:43]}  O-O {[%clk 0:02:44]} 10. h3 {[%clk 0:02:40]}  Bd7 {[%clk 0:02:41]} 11. d4 {[%clk 0:02:38]}  h6 {[%clk 0:02:36]} 12. Nbd2 {[%clk 0:02:27]}  Re8 {[%clk 0:02:35]} 13. Nf1 {[%clk 0:02:26]}  Bf8 {[%clk 0:02:34]} 14. Ng3 {[%clk 0:02:26]}  g6 {[%clk 0:02:32]} 15. Bd2 {[%clk 0:02:18]}  Qb8 {[%clk 0:02:21]} 16. Qc1 {[%clk 0:02:15]}  Na5 {[%clk 0:01:58]} 17. Ba2 {[%clk 0:02:10]}  bxa4 {[%clk 0:01:57]} 18. Bxh6 {[%clk 0:02:08]}  Bg7 {[%clk 0:01:53]} 19. Qg5 {[%clk 0:01:59]}  Nb3 {[%clk 0:01:48]} 20. Bxb3 {[%clk 0:01:45]}  Qxb3 {[%clk 0:01:49]} 21. dxe5 {[%clk 0:01:45]}  Nh7 {[%clk 0:01:38]} 22. Qh4 {[%clk 0:01:45]}  dxe5 {[%clk 0:01:28]} 23. Rad1 {[%clk 0:01:40]}  Bc6 {[%clk 0:01:22]} 24. Rd2 {[%clk 0:01:19]}  a3 {[%clk 0:01:22]} 25. bxa3 {[%clk 0:01:17]}  Qxc3 {[%clk 0:01:22]} 26. Nh2 {[%clk 0:01:05]}  Bf6 {[%clk 0:01:10]} 27. Qg4 {[%clk 0:01:04]}  Rad8 {[%clk 0:01:05]} 28. Rde2 {[%clk 0:00:59]}  Bd7 {[%clk 0:00:58]} 29. Qf3 {[%clk 0:00:56]}  Qxf3 {[%clk 0:00:56]} 30. Nxf3 {[%clk 0:00:54]}  Bb5 {[%clk 0:00:55]} 31. Rc2 {[%clk 0:00:53]}  c6 {[%clk 0:00:55]} 32. Ra1 {[%clk 0:00:39]}  Rd6 {[%clk 0:00:44]} 33. a4 {[%clk 0:00:38]}  Bd3 {[%clk 0:00:44]} 34. Rc3 {[%clk 0:00:36]}  Rb8 {[%clk 0:00:41]} 35. Kh2 {[%clk 0:00:27]}  Nf8 {[%clk 0:00:31]} 36. Rd1 {[%clk 0:00:19]}  Rbd8 {[%clk 0:00:26]} 37. Ne1 {[%clk 0:00:15]}  Bf1 {[%clk 0:00:12]} 38. Rxd6 {[%clk 0:00:14]}  Rxd6 {[%clk 0:00:13]} 39. Nxf1 {[%clk 0:00:14]}  Rd1 {[%clk 0:00:13]} 40. Rc1 {[%clk 0:00:15]}  Rd4 {[%clk 0:00:11]} 41. Rxc6 {[%clk 0:00:13]}  Ne6 {[%clk 0:00:11]} 42. Rxa6 {[%clk 0:00:12]}  Rxe4 {[%clk 0:00:12]} 43. Ne3 {[%clk 0:00:11]}  g5 {[%clk 0:00:11]} 44. Nf3 {[%clk 0:00:10]}  Kh7 {[%clk 0:00:10]} 45. Ng4 {[%clk 0:00:10]}  Bd8 {[%clk 0:00:03]} 46. Rxe6 {[%clk 0:00:09]}  fxe6 {[%clk 0:00:02]} 47. Bxg5 {[%clk 0:00:10]} 1-0


[Site "https://www.chess.com"]

[Event "Titled Tuesday Blitz June 21 Late 2022"]
[White "Nathan, Nitish"]
[Black "Araujo Filho, Luiz Antonio Coel"]
[WhiteFideId "30927870"]
[BlackFideId "2130661"]
[WhiteElo "2237"]
[BlackElo "2189"]
[Result "1-0"]
[Round "06"]
[TimeControl "180+1"]
[Date "2022.06.22"]
[WhiteClock "0:01:42"]
[BlackClock "0:00:37"]

1. d4 {[%clk 0:03:00]}  f5 {[%clk 0:02:59]} 2. Bf4 {[%clk 0:03:00]}  Nf6 {[%clk 0:02:59]} 3. e3 {[%clk 0:03:01]}  g6 {[%clk 0:03:00]} 4. Nf3 {[%clk 0:03:01]}  Bg7 {[%clk 0:03:00]} 5. Be2 {[%clk 0:03:02]}  O-O {[%clk 0:03:01]} 6. O-O {[%clk 0:03:02]}  d6 {[%clk 0:03:01]} 7. c4 {[%clk 0:03:03]}  c6 {[%clk 0:03:02]} 8. Nc3 {[%clk 0:03:03]}  Qe8 {[%clk 0:03:02]} 9. h3 {[%clk 0:03:01]}  Nbd7 {[%clk 0:03:03]} 10. b4 {[%clk 0:02:59]}  e5 {[%clk 0:03:03]} 11. Bh2 {[%clk 0:03:00]}  h6 {[%clk 0:03:01]} 12. c5 {[%clk 0:02:59]}  dxc5 {[%clk 0:02:58]} 13. bxc5 {[%clk 0:02:58]}  e4 {[%clk 0:02:56]} 14. Bc4+ {[%clk 0:02:56]}  Kh7 {[%clk 0:02:56]} 15. Ne5 {[%clk 0:02:56]}  g5 {[%clk 0:02:48]} 16. f3 {[%clk 0:02:47]}  Nxe5 {[%clk 0:02:40]} 17. Bxe5 {[%clk 0:02:45]}  exf3 {[%clk 0:02:40]} 18. Rxf3 {[%clk 0:02:44]}  Ne4 {[%clk 0:02:35]} 19. Nxe4 {[%clk 0:02:42]}  Bxe5 {[%clk 0:02:27]} 20. Qf1 {[%clk 0:02:34]}  Bd7 {[%clk 0:01:57]} 21. dxe5 {[%clk 0:02:22]}  fxe4 {[%clk 0:01:55]} 22. Rxf8 {[%clk 0:02:20]}  Qxf8 {[%clk 0:01:55]} 23. Rd1 {[%clk 0:02:21]}  Qe7 {[%clk 0:01:33]} 24. Qf6 {[%clk 0:02:14]}  Re8 {[%clk 0:01:28]} 25. Rd6 {[%clk 0:02:12]}  Qxf6 {[%clk 0:01:23]} 26. exf6 {[%clk 0:02:11]}  Bf5 {[%clk 0:01:18]} 27. g4 {[%clk 0:02:09]}  Bc8 {[%clk 0:01:14]} 28. f7 {[%clk 0:01:55]}  Rf8 {[%clk 0:01:07]} 29. Rd4 {[%clk 0:01:53]}  h5 {[%clk 0:00:51]} 30. Rxe4 {[%clk 0:01:51]}  hxg4 {[%clk 0:00:51]} 31. hxg4 {[%clk 0:01:50]}  Kg7 {[%clk 0:00:45]} 32. Kg2 {[%clk 0:01:49]}  Bd7 {[%clk 0:00:38]} 33. Kg3 {[%clk 0:01:44]}  Rh8 {[%clk 0:00:37]} 34. Re7 {[%clk 0:01:42]} 1-0


[Site "https://www.chess.com"]